fUSD/lending_fUSD_20260414
["ID","MTS","AMOUNT","RATE_DAILY","PERIOD"]
[420486956,1776150225185,502.0,0.00045201,120]
[420486961,1776150225317,162.380719,0.00045201,120]
[420486964,1776150225369,200.0,0.00045201,120]
[420486967,1776150225422,168.3888056,0.00045201,120]
[420486970,1776150225458,502.0,0.00045201,120]
[420486972,1776150225500,200.0,0.00045201,120]
[420486976,1776150225590,174.61919141,0.00045201,120]
[420486980,1776150225652,181.08010149,0.00045201,120]
[420486983,1776150225737,187.78006525,0.00045201,120]
[420486986,1776150225979,194.72792766,0.00045201,120]
[420486987,1776150226050,201.93286099,0.00045201,120]
[420486988,1776150226175,500.0,0.00045201,120]
[420486989,1776150226358,209.40437684,0.00045201,120]
[420486990,1776150226811,500.0,0.00045201,120]
[420486991,1776150226971,217.15233878,0.00045201,120]
[420486998,1776150227166,500.0,0.00045201,120]
[420487001,1776150227246,225.18697532,0.00045201,120]
[420487005,1776150227359,500.0,0.00045201,120]
[420487008,1776150227426,233.51889341,0.00045201,120]
[420487100,1776150267943,1099.2216,8.657e-05,2]
[420487101,1776150278825,200.0,8.559e-05,2]
[420487102,1776150280081,3700.7884,8.657e-05,2]
[420487103,1776150280105,2547.7463,8.657e-05,2]
[420487105,1776150335933,3575.133,8.657e-05,2]
[420487106,1776150382379,-300.0,8.752e-05,2]
[420487107,1776150382411,-250.0,8.753e-05,2]
[420487108,1776150382447,-1200.0,8.753e-05,2]
[420487109,1776150382477,-275.0,8.753e-05,2]
[420487110,1776150382502,-3006.92301652,8.753e-05,2]
[420487111,1776150382527,-300.0,8.754e-05,2]
[420487112,1776150382557,-300.0,8.754e-05,2]
[420487113,1776150382587,-211.65034056,8.754e-05,2]
[420487114,1776150382614,-500.0,8.755e-05,2]
[420487115,1776150382654,-500.0,8.755e-05,2]
[420487116,1776150382681,-500.0,8.755e-05,2]
[420487117,1776150382725,-277.83593509,8.755e-05,2]
[420487118,1776150382751,-150.0,8.755e-05,2]
[420487119,1776150382792,-500.0,8.756e-05,2]
[420487120,1776150382825,-500.0,8.756e-05,2]
[420487121,1776150382861,-500.0,8.756e-05,2]
[420487122,1776150382895,-500.0,8.756e-05,2]
[420487123,1776150382927,-228.59070783,8.756e-05,2]
[420487124,1776150384336,-271.40929217,8.756e-05,2]
[420487125,1776150384382,-500.0,8.756e-05,2]
[420487126,1776150384424,-500.0,8.756e-05,2]
[420487127,1776150384467,-500.0,8.756e-05,2]
[420487128,1776150384510,-500.0,8.756e-05,2]
[420487129,1776150384549,-500.0,8.756e-05,2]
[420487130,1776150384586,-500.0,8.756e-05,2]
[420487131,1776150384619,-641.06336903,8.756e-05,2]
[420487132,1776150384650,-500.0,8.756e-05,2]
[420487133,1776150384681,-500.0,8.756e-05,2]
[420487134,1776150384714,-500.0,8.756e-05,2]
[420487135,1776150384750,-500.0,8.756e-05,2]
[420487136,1776150384783,-500.0,8.756e-05,2]
[420487137,1776150384816,-500.0,8.756e-05,2]
[420487138,1776150384850,-500.0,8.756e-05,2]
[420487139,1776150384879,-500.0,8.756e-05,2]
[420487140,1776150384910,-500.0,8.756e-05,2]
[420487141,1776150384940,-500.0,8.756e-05,2]
[420487142,1776150384992,-500.0,8.756e-05,2]
[420487143,1776150385038,-500.0,8.756e-05,2]
[420487144,1776150385072,-87.5273388,8.756e-05,2]
[420487145,1776150385488,-412.4726612,8.756e-05,2]
[420487146,1776150385566,-500.0,8.756e-05,2]
[420487147,1776150385616,-500.0,8.756e-05,2]
[420487148,1776150385670,-500.0,8.756e-05,2]
[420487149,1776150385739,-500.0,8.756e-05,2]
[420487150,1776150385782,-3207.322,8.756e-05,2]
[420487151,1776150385815,-230.214,8.756e-05,2]
[420487152,1776150385841,-4149.9913388,8.756e-05,2]
[420487153,1776150386241,-3310.01626541,8.756e-05,2]
[420487154,1776150386278,-6689.98373459,8.757e-05,2]
[420487155,1776150386454,-10000.0,8.757e-05,2]
[420487156,1776150386598,-10000.0,8.757e-05,2]
[420487157,1776150386719,-10000.0,8.757e-05,2]
[420487158,1776150386986,-10000.0,8.757e-05,2]
[420487159,1776150387842,-10000.0,8.757e-05,2]
[420487160,1776150387948,-10000.0,8.757e-05,2]
[420487161,1776150388101,-10000.0,8.757e-05,2]
[420487162,1776150388347,-10000.0,8.757e-05,2]
[420487163,1776150389509,-10000.0,8.757e-05,2]
[420487164,1776150389743,-10000.0,8.757e-05,2]
[420487165,1776150389971,-10000.0,8.757e-05,2]
[420487166,1776150390125,-10000.0,8.757e-05,2]
[420487167,1776150390679,-10000.0,8.757e-05,2]
[420487168,1776150390914,-10000.0,8.757e-05,2]
[420487169,1776150391561,-10000.0,8.757e-05,2]
[420487170,1776150392895,-10000.0,8.757e-05,2]
[420487171,1776150393893,-10000.0,8.757e-05,2]
[420487172,1776150394376,-10000.0,8.757e-05,2]
[420487173,1776150394973,-6166.27676541,8.757e-05,2]
[420487174,1776150395015,-155.0,8.757e-05,3]
[420487175,1776150395056,-3678.72323459,8.757e-05,2]
[420487176,1776150395314,-6321.26676541,8.757e-05,2]
[420487177,1776150395353,-211.65034056,8.757e-05,2]
[420487178,1776150395396,-151.0,8.767e-05,2]
[420487179,1776150395436,-150.99,8.767e-05,2]
[420487180,1776150395480,-500.0,8.769e-05,2]
[420487181,1776150395504,-460.68243523,8.769e-05,2]
[420487182,1776150395542,-500.0,8.769e-05,2]
[420487183,1776150395577,-500.0,8.769e-05,2]
[420487184,1776150395604,-275.43460669,8.769e-05,2]
[420487185,1776150395632,-500.0,8.769e-05,2]
[420487186,1776150395659,-402.1102634,8.769e-05,2]
[420487187,1776150395682,-26.86558871,8.769e-05,2]
[420487188,1776150396062,-473.13441129,8.769e-05,2]
[420487189,1776150396096,-325.36647362,8.769e-05,2]
[420487190,1776150396135,-9201.49911509,8.77e-05,2]
[420487191,1776150396294,-10000.0,8.77e-05,2]
[420487192,1776150397659,-500.0,8.756e-05,2]
[420487193,1776150397701,-500.0,8.756e-05,2]
[420487194,1776150397741,-500.0,8.756e-05,2]
[420487195,1776150397799,-500.0,8.756e-05,2]
[420487196,1776150397842,-500.0,8.756e-05,2]
[420487197,1776150397883,-500.0,8.756e-05,2]
[420487198,1776150397921,-500.0,8.756e-05,2]
[420487199,1776150397950,-500.0,8.756e-05,2]
[420487200,1776150397976,-500.0,8.756e-05,2]
[420487201,1776150398006,-500.0,8.756e-05,2]
[420487202,1776150398034,-500.0,8.756e-05,2]
[420487203,1776150398062,-500.0,8.756e-05,2]
[420487204,1776150398099,-4000.0,8.77e-05,2]
[420487205,1776150399125,-10000.0,8.77e-05,2]
[420487206,1776150402941,-275.0,8.77e-05,2]
[420487207,1776150402980,-9725.0,8.77e-05,2]
[420487208,1776150403659,-10000.0,8.77e-05,2]
[420487209,1776150404923,-10000.0,8.77e-05,2]
[420487210,1776150405382,-10000.0,8.77e-05,2]
[420487211,1776150406916,-10000.0,8.77e-05,2]
[420487212,1776150415714,-293.45148545,8.756e-05,2]
[420487213,1776150415750,-6063.34311455,8.77e-05,2]
[420487326,1776150482431,10000.01,8.657e-05,2]
[420487327,1776150482491,2452.2637,8.657e-05,2]
[420487328,1776150482551,5000.01,8.657e-05,2]
[420487329,1776150482601,5000.01,8.657e-05,2]
[420487330,1776150482671,5000.01,8.657e-05,2]
[420487331,1776150482731,5000.01,8.657e-05,2]
[420487332,1776150482769,5000.01,8.657e-05,2]
[420487333,1776150482802,5000.01,8.657e-05,2]
[420487334,1776150482838,5000.01,8.657e-05,2]
[420487335,1776150490015,-4420.30885754,8.657e-05,2]
[420487336,1776150490125,-5000.01,8.657e-05,2]
[420487337,1776150490148,-5000.01,8.657e-05,2]
[420487338,1776150490193,-5000.01,8.657e-05,2]
[420487339,1776150490213,-5000.01,8.657e-05,2]
[420487340,1776150490232,-5000.01,8.657e-05,2]
[420487341,1776150490376,-673.65614246,8.657e-05,2]
[420487342,1776150546127,5000.01,8.657e-05,2]
[420487343,1776150546155,5000.01,8.657e-05,2]
[420487344,1776150546187,5000.01,8.657e-05,2]
[420487345,1776150546216,5000.01,8.657e-05,2]
[420487346,1776150546242,5000.01,8.657e-05,2]
[420487347,1776150546271,5000.01,8.657e-05,2]
[420487348,1776150546302,5000.01,8.657e-05,2]
[420487349,1776150546335,5000.01,8.657e-05,2]
[420487350,1776150546365,10000.01,8.657e-05,2]
[420487351,1776150546394,10000.01,8.657e-05,2]
[420487352,1776150546428,10000.01,8.657e-05,2]
[420487353,1776150546461,10000.01,8.657e-05,2]
[420487354,1776150551703,-5000.01,8.657e-05,2]
[420487355,1776150551774,-5000.01,8.657e-05,2]
[420487356,1776150552056,-5000.01,8.657e-05,2]
[420487357,1776150554457,-5000.01,8.657e-05,2]
[420487358,1776150555756,-5000.01,8.657e-05,2]
[420487359,1776150556467,-5000.01,8.657e-05,2]
[420487360,1776150556486,-5000.01,8.657e-05,2]
[420487361,1776150578689,169.18,7.135e-05,2]
[420487364,1776150634321,-1200.0,8.656e-05,2]
[420487365,1776150634336,-160.0,8.656e-05,2]
[420487366,1776150634359,-300.0,8.656e-05,2]
[420487367,1776150634384,-250.0,8.656e-05,2]
[420487368,1776150634399,-1708.15504223,8.657e-05,2]
[420487369,1776150634425,-10332.79882738,8.657e-05,2]
[420487370,1776150634441,-674.06681493,8.657e-05,2]
[420487371,1776150634477,-501.55199785,8.657e-05,2]
[420487372,1776150634489,-339.75260614,8.657e-05,2]
[420487373,1776150634513,-380.68182096,8.657e-05,2]
[420487374,1776150634526,-548.88672,8.657e-05,2]
[420487375,1776150634565,-351079.84067051,8.657e-05,2]
[420487376,1776150634589,-246.0,8.657e-05,2]
[420487377,1776150634600,-523.67661973,8.723e-05,2]
[420487378,1776150634618,-150.0,8.755e-05,2]
[420487379,1776150634633,-300.0,8.755e-05,2]
[420487380,1776150634643,-500.0,8.756e-05,2]
[420487381,1776150634662,-617.81556151,8.756e-05,2]
[420487382,1776150634674,-617.81556151,8.756e-05,2]
[420487383,1776150634684,-617.81556151,8.756e-05,2]
[420487384,1776150634696,-617.81556151,8.756e-05,2]
[420487385,1776150634710,-617.81556151,8.756e-05,2]
[420487386,1776150634723,-617.81556151,8.756e-05,2]
[420487387,1776150634746,-617.81556151,8.756e-05,2]
[420487388,1776150634756,-617.81556151,8.756e-05,2]
[420487389,1776150634767,-617.81556151,8.756e-05,2]
[420487390,1776150634792,-617.81556151,8.756e-05,2]
[420487391,1776150634802,-617.81556151,8.756e-05,2]
[420487392,1776150634814,-617.81556151,8.756e-05,2]
[420487393,1776150634857,-617.81556151,8.756e-05,2]
[420487394,1776150634867,-617.81556151,8.756e-05,2]
[420487395,1776150634900,-617.81556151,8.756e-05,2]
[420487396,1776150634915,-617.81556151,8.756e-05,2]
[420487397,1776150634937,-617.81556151,8.756e-05,2]
[420487398,1776150634948,-617.81556151,8.756e-05,2]
[420487399,1776150634971,-617.81556151,8.756e-05,2]
[420487400,1776150634981,-617.81556151,8.756e-05,2]
[420487401,1776150634991,-617.81556151,8.756e-05,2]
[420487402,1776150635009,-617.81556151,8.756e-05,2]
[420487403,1776150635019,-617.81556151,8.756e-05,2]
[420487404,1776150635030,-617.81556151,8.756e-05,2]
[420487405,1776150635040,-617.81556151,8.756e-05,2]
[420487406,1776150635057,-617.81556151,8.756e-05,2]
[420487407,1776150635070,-617.81556151,8.756e-05,2]
[420487408,1776150635082,-617.81556151,8.756e-05,2]
[420487409,1776150635091,-617.81556151,8.756e-05,2]
[420487410,1776150635102,-617.81556151,8.756e-05,2]
[420487411,1776150635116,-617.81556151,8.756e-05,2]
[420487412,1776150635126,-617.81556151,8.756e-05,2]
[420487413,1776150635137,-500.0,8.756e-05,2]
[420487414,1776150635147,-621.41948562,8.756e-05,2]
[420487415,1776150635163,-621.41948562,8.756e-05,2]
[420487416,1776150635304,-621.41948562,8.756e-05,2]
[420487417,1776150635314,-621.41948562,8.756e-05,2]
[420487418,1776150635324,-621.41948562,8.756e-05,2]
[420487419,1776150635350,-621.41948562,8.756e-05,2]
[420487420,1776150635362,-621.41948562,8.756e-05,2]
[420487421,1776150635373,-621.41948562,8.756e-05,2]
[420487422,1776150635396,-621.41948562,8.756e-05,2]
[420487423,1776150635407,-621.41948562,8.756e-05,2]
[420487424,1776150635416,-621.41948562,8.756e-05,2]
[420487425,1776150635437,-621.41948562,8.756e-05,2]
[420487426,1776150635448,-621.41948562,8.756e-05,2]
[420487427,1776150635458,-621.41948562,8.756e-05,2]
[420487428,1776150635469,-621.41948562,8.756e-05,2]
[420487429,1776150635489,-621.41948562,8.756e-05,2]
[420487430,1776150635500,-621.41948562,8.756e-05,2]
[420487431,1776150635525,-621.41948562,8.756e-05,2]
[420487432,1776150635536,-621.41948562,8.756e-05,2]
[420487433,1776150635546,-621.41948562,8.756e-05,2]
[420487434,1776150635572,-621.41948562,8.756e-05,2]
[420487435,1776150635584,-621.41948562,8.756e-05,2]
[420487436,1776150635609,-621.41948562,8.756e-05,2]
[420487437,1776150635620,-621.41948562,8.756e-05,2]
[420487438,1776150635652,-621.41948562,8.756e-05,2]
[420487439,1776150635663,-621.41948562,8.756e-05,2]
[420487440,1776150635675,-621.41948562,8.756e-05,2]
[420487441,1776150635701,-621.41948562,8.756e-05,2]
[420487442,1776150635714,-678.60794561,8.756e-05,2]
[420487443,1776150635744,-678.60794561,8.756e-05,2]
[420487444,1776150635753,-678.60794561,8.756e-05,2]
[420487445,1776150635779,-678.60794561,8.756e-05,2]
[420487446,1776150635789,-678.60794561,8.756e-05,2]
[420487447,1776150635802,-678.60794561,8.756e-05,2]
[420487448,1776150635820,-678.60794561,8.756e-05,2]
[420487449,1776150635830,-678.60794561,8.756e-05,2]
[420487450,1776150635840,-678.60794561,8.756e-05,2]
[420487451,1776150635852,-678.60794561,8.756e-05,2]
[420487452,1776150635863,-678.60794561,8.756e-05,2]
[420487453,1776150635874,-678.60794561,8.756e-05,2]
[420487454,1776150635888,-678.60794561,8.756e-05,2]
[420487455,1776150635898,-678.60794561,8.756e-05,2]
[420487456,1776150635916,-678.60794561,8.756e-05,2]
[420487457,1776150635927,-678.60794561,8.756e-05,2]
[420487458,1776150635939,-577.11306712,8.769e-05,2]
[420487459,1776150635952,-471.94274224,8.769e-05,2]
[420487460,1776150635963,-187.83076697,8.818e-05,2]
[420487461,1776150635983,-7856.35,8.929e-05,2]
[420487462,1776150635993,-209.40437684,8.998e-05,2]
[420487463,1776150636011,-578.20924308,8.998e-05,2]
[420487464,1776150636022,-1100.0,9e-05,3]
[420487465,1776150636032,-500.0,9.03e-05,2]
[420487466,1776150636042,-9514.06,9.123e-05,2]
[420487467,1776150636059,-15141.66,9.123e-05,2]
[420487468,1776150636075,-1826.5371,9.123e-05,2]
[420487469,1776150636086,-163.91689428,9.293e-05,2]
[420487470,1776150636096,-500.0,9.293e-05,2]
[420487471,1776150636106,-721.12765535,9.313e-05,2]
[420487472,1776150636117,-500.0,9.313e-05,2]
[420487473,1776150636128,-200.0,9.313e-05,2]
[420487474,1776150636138,-500.0,9.313e-05,2]
[420487475,1776150636150,-500.0,9.313e-05,2]
[420487476,1776150636163,-500.0,9.313e-05,2]
[420487477,1776150636173,-500.0,9.313e-05,2]
[420487478,1776150636184,-500.0,9.313e-05,2]
[420487479,1776150636194,-500.0,9.313e-05,2]
[420487480,1776150636212,-500.0,9.313e-05,2]
[420487481,1776150636228,-500.0,9.313e-05,2]
[420487482,1776150636241,-500.0,9.313e-05,2]
[420487483,1776150636251,-200.0,9.313e-05,2]
[420487484,1776150636268,-500.0,9.313e-05,2]
[420487485,1776150636278,-174.61919141,9.313e-05,2]
[420487486,1776150636289,-439.0,9.319e-05,5]
[420487487,1776150636312,-151.0,9.319e-05,2]
[420487488,1776150636323,-151.0,9.319e-05,2]
[420487489,1776150636333,-151.0,9.319e-05,2]
[420487490,1776150636352,-409.07,9.388e-05,2]
[420487491,1776150636365,-217.22,9.452e-05,2]
[420487492,1776150636386,-2000.0,9.474e-05,2]
[420487493,1776150636401,-250.0,9.506e-05,2]
[420487494,1776150636414,-1680.0,9.521e-05,2]
[420487495,1776150636431,-420.0,9.521e-05,2]
[420487496,1776150636446,-250.0,9.522e-05,2]
[420487497,1776150636468,-217.15233878,9.546e-05,2]
[420487498,1776150636480,-151.0,9.589e-05,2]
[420487499,1776150636493,-151.0,9.589e-05,2]
[420487500,1776150636513,-255.0,9.63e-05,2]
[420487501,1776150636544,-420.0,9.63e-05,2]
[420487502,1776150636562,-250.0,9.646e-05,2]
[420487503,1776150636583,-193.0,9.647e-05,2]
[420487504,1776150636600,-912.0,9.725e-05,5]
[420487505,1776150636637,-1000.0,9.841e-05,2]
[420487506,1776150636651,-200.0,9.861e-05,2]
[420487507,1776150636667,-181.08010149,9.861e-05,2]
[420487508,1776150636681,-150.0,9.9e-05,2]
[420487509,1776150636695,-729.0,9.916e-05,5]
[420487510,1776150636718,-5522.745199,9.918e-05,2]
[420487511,1776150636732,-3430.121486,9.922e-05,2]
[420487512,1776150636746,-9124.293034,9.968e-05,2]
[420487513,1776150636760,-7461.0,9.973e-05,2]
[420487514,1776150636774,-150.0,9.986e-05,2]
[420487515,1776150636786,-150.0,9.986e-05,2]
[420487516,1776150636796,-150.0,9.986e-05,2]
[420487517,1776150636808,-150.0,9.986e-05,2]
[420487518,1776150636819,-150.0,9.986e-05,2]
[420487519,1776150636843,-150.0,9.986e-05,2]
[420487520,1776150636853,-150.0,9.986e-05,2]
[420487521,1776150636869,-150.0,9.986e-05,2]
[420487522,1776150636880,-150.0,9.986e-05,2]
[420487523,1776150636896,-150.0,9.986e-05,2]
[420487524,1776150636908,-150.0,9.986e-05,2]
[420487525,1776150636926,-201.10028587,9.986e-05,2]
[420487526,1776150636936,-150.0,9.986e-05,2]
[420487527,1776150636965,-204.0,9.989e-05,2]
[420487528,1776150636976,-204.0,9.989e-05,2]
[420487529,1776150636991,-150.0,9.998e-05,2]
[420487530,1776150637014,-150.0,9.999e-05,2]
[420487531,1776150637024,-25007.68629494,0.0001,2]
[420487532,1776150637051,-428.44832049,0.0001,2]
[420487533,1776150637062,-249.31367898,0.0001,2]
[420487534,1776150637081,-3363.24483834,0.0001,2]
[420487535,1776150637108,-7207.83061474,0.0001,2]
[420487536,1776150637121,-6423.62721318,0.0001,2]
[420487537,1776150637132,-7992.03401638,0.0001,2]
[420487538,1776150637150,-272.12328813,0.0001,2]
[420487539,1776150637172,-2300.0,0.0001,3]
[420487540,1776150637187,-151.0,0.0001,2]
[420487541,1776150637204,-151.0,0.0001,2]
[420487542,1776150637214,-151.0,0.0001,2]
[420487543,1776150637224,-151.0,0.0001,2]
[420487544,1776150637259,-151.0,0.0001,2]
[420487545,1776150637270,-151.0,0.0001,2]
[420487546,1776150637295,-151.0,0.0001,2]
[420487547,1776150637307,-151.0,0.0001,2]
[420487548,1776150637336,-151.0,0.0001,2]
[420487549,1776150637346,-151.0,0.0001,2]
[420487550,1776150637363,-151.0,0.0001,2]
[420487551,1776150637374,-151.0,0.0001,2]
[420487552,1776150637387,-151.0,0.0001,2]
[420487553,1776150637399,-151.0,0.0001,2]
[420487554,1776150637424,-151.0,0.0001,2]
[420487555,1776150637435,-151.0,0.0001,2]
[420487556,1776150637458,-151.0,0.0001,2]
[420487557,1776150637468,-151.0,0.0001,2]
[420487558,1776150637478,-151.0,0.0001,2]
[420487559,1776150637501,-151.0,0.0001,2]
[420487560,1776150637512,-1386.78395259,0.0001,2]
[420487561,1776150637536,-500.0,0.0001,2]
[420487562,1776150637547,-500.0,0.0001,2]
[420487563,1776150637557,-500.0,0.0001,2]
[420487564,1776150637591,-500.0,0.0001,2]
[420487565,1776150637602,-500.0,0.0001,2]
[420487566,1776150637628,-500.0,0.0001,2]
[420487567,1776150637641,-500.0,0.0001,2]
[420487568,1776150637664,-500.0,0.0001,2]
[420487569,1776150637678,-500.0,0.0001,2]
[420487570,1776150637690,-500.0,0.0001,2]
[420487571,1776150637707,-500.0,0.0001,2]
[420487572,1776150637722,-150.0,0.00010001,2]
[420487573,1776150637736,-150.0,0.00010002,2]
[420487574,1776150637761,-150.0,0.00010005,2]
[420487575,1776150637777,-150.0,0.00010005,2]
[420487576,1776150637820,-150.0,0.00010009,2]
[420487577,1776150637838,-150.0,0.00010016,2]
[420487578,1776150637888,-150.0,0.00010017,2]
[420487579,1776150637899,-150.0,0.00010021,2]
[420487580,1776150637910,-150.0,0.00010024,2]
[420487581,1776150637927,-150.0,0.00010025,2]
[420487582,1776150637941,-150.0,0.00010026,2]
[420487584,1776150637956,-150.0,0.00010026,2]
[420487585,1776150637967,-150.0,0.00010031,2]
[420487586,1776150637981,-150.0,0.00010033,2]
[420487587,1776150637995,-150.0,0.00010033,2]
[420487588,1776150638005,-150.0,0.00010043,2]
[420487589,1776150638016,-150.0,0.00010044,2]
[420487590,1776150638025,-150.0,0.00010044,2]
[420487591,1776150638035,-150.0,0.00010045,2]
[420487592,1776150638045,-150.0,0.00010048,2]
[420487593,1776150638057,-150.0,0.00010048,2]
[420487594,1776150638067,-3960.21297131,0.0001005,2]
[420487595,1776150638089,-33963.57711793,0.0001005,2]
[420487600,1776150638209,-500.0,8.998e-05,2]
[420487602,1776150638231,-21.88350305,0.0001005,2]
[420487604,1776150638241,-151.0,0.0001005,2]
[420487606,1776150638262,-151.0,0.0001005,2]
[420487608,1776150638281,-43.4111503,0.0001005,2]
[420487609,1776150638295,-107.5888497,0.0001005,2]
[420487610,1776150638306,-151.0,0.0001005,2]
[420487611,1776150638323,-151.0,0.0001005,2]
[420487612,1776150638346,-150.0,0.00010056,2]
[420487613,1776150638360,-150.0,0.0001006,2]
[420487614,1776150638370,-150.0,0.00010062,2]
[420487615,1776150638391,-150.0,0.00010063,2]
[420487616,1776150638406,-150.0,0.00010063,2]
[420487617,1776150638417,-150.0,0.00010066,2]
[420487618,1776150638448,-150.0,0.00010066,2]
[420487619,1776150638458,-150.0,0.00010067,2]
[420487620,1776150638469,-150.0,0.00010075,2]
[420487621,1776150638488,-90.4111503,0.00010079,2]
[420487622,1776150638761,-500.0,0.0001,2]
[420487623,1776150638772,-59.5888497,0.00010079,2]
[420487625,1776150638789,-150.0,0.00010079,2]
[420487627,1776150638819,-150.0,0.0001008,2]
[420487629,1776150638829,-274.0511503,0.00010082,2]
[420487689,1776150641283,-150.0,8.656e-05,2]
[420487690,1776150641294,-284.17989899,8.657e-05,2]
[420487691,1776150641306,-500.0,9.053e-05,2]
[420487692,1776150641316,-500.0,9.108e-05,2]
[420487693,1776150641330,-500.0,9.163e-05,2]
[420487694,1776150641343,-500.0,9.218e-05,2]
[420487695,1776150641353,-500.0,9.273e-05,2]
[420487696,1776150641365,-151.0,9.313e-05,2]
[420487697,1776150641375,-500.0,9.328e-05,2]
[420487698,1776150641384,-500.0,9.383e-05,2]
[420487699,1776150641397,-500.0,0.0001,2]
[420487700,1776150641407,-500.0,0.0001,2]
[420487701,1776150641417,-500.0,0.0001,2]
[420487702,1776150641431,-500.0,0.0001,2]
[420487703,1776150641442,-500.0,0.0001,2]
[420487704,1776150641452,-500.0,0.0001,2]
[420487705,1776150641462,-500.0,0.0001,2]
[420487706,1776150641477,-500.0,0.0001,2]
[420487707,1776150641488,-500.0,0.0001,2]
[420487708,1776150641498,-500.0,0.0001,2]
[420487709,1776150641513,-994.1348497,0.00010082,2]
[420487710,1776150641523,-150.0,0.00010082,2]
[420487711,1776150641546,-150.0,0.0001009,2]
[420487712,1776150641559,-150.0,0.0001009,2]
[420487713,1776150641569,-215.09535391,0.00010094,2]
[420487714,1776150641584,-150.0,0.00010094,2]
[420487715,1776150641594,-151.0,0.00010095,2]
[420487716,1776150641609,-151.0,0.00010095,2]
[420487717,1776150641621,-18694.4423774,0.00010098,2]
[420487718,1776150641649,-11556.63275172,0.00010098,2]
[420487719,1776150642128,-500.0,9.438e-05,2]
[420487720,1776150642138,-6711.59566316,0.00010098,2]
[420487721,1776150642173,-4144.1699421,0.00010098,2]
[420487729,1776150643115,10000.01,8.557e-05,2]
[420487730,1776150643146,10000.01,8.557e-05,2]
[420487731,1776150643182,10000.01,8.557e-05,2]
[420487734,1776150644702,-2095.90798448,8.557e-05,2]
[420487736,1776150646753,-1.04734116,8.557e-05,2]
[420487739,1776150648218,-536.16821049,8.557e-05,2]
[420487760,1776150675046,-309024.05599159,8.557e-05,2]
[420487761,1776150675068,-15931.90445107,8.557e-05,2]
[420487762,1776150678398,-784.18125246,8.557e-05,2]
[420487763,1776150678834,-4048.77515327,8.557e-05,2]
[420487764,1776150678859,-13545.13394976,8.557e-05,2]
[420487765,1776150680731,579.70114246,7.554e-05,2]
[420487766,1776150687865,5126.72612859,8.309e-05,2]
[420487767,1776150721890,150.0,8.556e-05,2]
[420487768,1776150723122,500.29600956,8.533e-05,2]
[420487769,1776150723249,150.0,8.158e-05,2]
[420487770,1776150725178,500.0,8.533e-05,2]
[420487771,1776150725355,300.0,8.556e-05,2]
[420487772,1776150761291,-151.0,0.00045204,120]
[420487773,1776150761333,-197.42094,0.00045204,120]
[420487774,1776150761387,-796.07998562,0.00045204,120]
[420487775,1776150761431,-1494.85983542,0.00045204,120]
[420487776,1776150761482,-200000.0,0.00045204,120]
[420487777,1776150761537,-594.82047853,0.00045204,120]
[420487778,1776150761592,-152.269041,0.00045204,120]
[420487779,1776150761657,-175.248404,0.00045204,120]
[420487780,1776150761701,-151.0,0.00045204,120]
[420487781,1776150761746,-151.0,0.00045204,120]
[420487782,1776150761794,-151.0,0.00045204,120]
[420487783,1776150761839,-151.0,0.00045204,120]
[420487784,1776150761879,-151.0,0.00045204,120]
[420487785,1776150761922,-151.0,0.00045204,120]
[420487786,1776150761965,-151.0,0.00045204,120]
[420487787,1776150762008,-151.0,0.00045204,120]
[420487788,1776150762054,-151.0,0.00045204,120]
[420487789,1776150762095,-151.0,0.00045204,120]
[420487790,1776150762142,-151.0,0.00045204,120]
[420487791,1776150762190,-203.970392,0.00045204,120]
[420487792,1776150762238,-151.0,0.00045204,120]
[420487793,1776150762298,-233.424754,0.00045204,120]
[420487794,1776150762356,-5298.5657743,0.00045204,120]
[420487795,1776150762396,-151.0,0.00045204,120]
[420487796,1776150762433,-151.0,0.00045204,120]
[420487797,1776150762477,-30000.0,0.00045204,120]
[420487798,1776150762517,-203.53456007,0.00045204,120]